bitfinex-derivatives/quotes_BNBF0:USTF0_20260110
["timestamp","ask_amount","ask_price","bid_price","bid_amount"]
[1768030120694,0.19160727,908.21,907.51,0.69195508]
[1768030120898,0.19160727,908.21,907.52,0.69195508]
[1768030121099,0.19160727,908.21,907.53,0.69195508]
[1768030121300,0.19160727,908.21,907.54,0.69195508]
[1768030121496,0.19160727,908.21,907.55,0.69195508]
[1768030121696,0.19160727,908.21,907.56,0.69195508]
[1768030121899,0.19160727,908.21,907.57,0.69195508]
[1768030122197,0.19160727,908.21,907.58,0.69195508]
[1768030122394,0.19160727,908.21,907.59,0.69195508]
[1768030122599,0.19160727,908.21,907.6,0.69195508]
[1768030122797,0.19160727,908.21,907.61,0.69195508]
[1768030122996,0.19160727,908.21,907.62,0.69195508]
[1768030123295,0.19160727,908.21,907.63,0.69195508]
[1768030123498,0.19160727,908.21,907.64,0.69195508]
[1768030123697,0.19160727,908.21,907.65,0.69195508]
[1768030123896,0.19160727,908.21,907.66,0.69195508]
[1768030124096,0.19160727,908.21,907.67,0.69195508]
[1768030124296,0.19160727,908.21,907.68,0.69195508]
[1768030124500,0.19160727,908.21,907.69,0.69195508]
[1768030124800,0.19160727,908.21,907.7,0.69195508]
[1768030124998,0.19160727,908.21,907.71,0.69195508]
[1768030125201,0.19160727,908.21,907.47,2.223]
[1768030125402,0.19160727,908.21,907.48,0.69195518]
[1768030125698,0.19160727,908.21,907.49,0.69195518]
[1768030125901,0.19160727,908.21,907.5,0.69195518]
[1768030126101,0.19160727,908.21,907.51,0.69195518]
[1768030126298,0.19160727,908.21,907.52,0.69195498]
[1768030126497,0.19160727,908.21,907.53,0.69195498]
[1768030126697,0.19160727,908.21,907.54,0.69195498]
[1768030126998,0.19160727,908.21,907.55,0.69195498]
[1768030127198,0.19160727,908.21,907.56,0.69195498]
[1768030127398,0.19160727,908.21,907.57,0.69195498]
[1768030127597,0.19160727,908.21,907.58,0.69195498]
[1768030127898,0.19160727,908.21,907.59,0.69195498]
[1768030128098,0.19160727,908.21,907.6,0.69195498]
[1768030128301,0.19160727,908.21,907.61,0.69195498]
[1768030128497,0.19160727,908.21,907.62,0.69195498]
[1768030128697,0.19160727,908.21,907.63,0.69195498]
[1768030128996,0.19160727,908.21,907.64,0.69195498]
[1768030129199,0.19160727,908.21,907.65,0.69195498]
[1768030129397,0.19160727,908.21,907.66,0.69195498]
[1768030129700,0.19160727,908.21,907.67,0.69195498]
[1768030129898,0.19160727,908.21,907.68,0.69195498]
[1768030130100,0.19160727,908.21,907.69,0.69195498]
[1768030130299,0.19160727,908.21,907.7,0.69195498]
[1768030130498,0.19160727,908.21,907.71,0.69195498]
[1768030130697,0.19160727,908.21,907.72,0.69195498]
[1768030130900,0.19160727,908.21,907.47,2.223]
[1768030131100,0.19160727,908.21,907.48,0.69277822]
[1768030131400,0.19160727,908.21,907.49,0.69277822]
[1768030131596,0.19160727,908.21,907.5,0.69277822]
[1768030131795,0.19160727,908.21,907.51,0.69277822]
[1768030132000,0.19160727,908.21,907.52,0.69277822]
[1768030132197,0.19160727,908.21,907.53,0.69277822]
[1768030132397,0.19160727,908.21,907.54,0.69277822]
[1768030132601,0.19160727,908.21,907.55,0.69277822]
[1768030132796,0.19160727,908.21,907.56,0.69277822]
[1768030132998,0.19160727,908.21,907.57,0.69277822]
[1768030133203,0.19160727,908.21,907.58,0.69277822]
[1768030133497,0.19160727,908.21,907.59,0.69277822]
[1768030133698,0.19160727,908.21,907.6,0.69277822]
[1768030133997,0.19160727,908.21,907.61,0.69277822]
[1768030134201,0.19160727,908.21,907.62,0.69277822]
[1768030134498,0.19160727,908.21,907.63,0.69277822]
[1768030134697,0.19160727,908.21,907.64,0.69277822]
[1768030134898,0.19160727,908.21,907.65,0.69277822]
[1768030135196,0.19160727,908.21,907.66,0.69277822]
[1768030135400,0.19160727,908.21,907.67,0.69277822]
[1768030135600,0.19160727,908.21,907.38,0.82721701]
[1768030135798,0.19160727,908.21,907.39,0.69255761]
[1768030135997,0.19160727,908.21,907.4,0.69255761]
[1768030136297,0.19160727,908.21,907.41,0.69255761]
[1768030136500,0.19160727,908.21,907.39,2.15]
[1768030136501,0.19160727,908.21,907.42,0.69255761]
[1768030136698,0.19160727,908.21,907.43,0.69255761]
[1768030137001,0.19160727,908.21,907.44,0.69255761]
[1768030137201,0.19160727,908.21,907.45,0.69255761]
[1768030137403,0.19160727,908.21,907.46,0.69255761]
[1768030137602,0.19160727,908.21,907.47,0.69255761]
[1768030137800,0.19160727,908.21,907.48,0.69255761]
[1768030137999,0.19160727,908.21,907.49,0.69255761]
[1768030138301,0.19160727,908.21,907.39,2.15]
[1768030138302,0.19160727,908.21,907.5,0.69255761]
[1768030138500,0.19160727,908.21,907.51,0.69255761]
[1768030138699,0.19160727,908.21,907.52,0.69255761]
[1768030138903,0.19160727,908.21,907.53,0.69255761]
[1768030139197,0.19160727,908.21,907.54,0.69255761]
[1768030139403,0.19160727,908.21,907.55,0.69255761]
[1768030139699,0.19160727,908.21,907.56,0.69255761]
[1768030139899,0.19160727,908.21,907.57,0.69255761]
[1768030140200,0.19160727,908.21,907.58,0.69255761]
[1768030140403,0.19160727,908.21,907.59,0.69255761]
[1768030140603,0.19160727,908.21,907.6,0.69255761]
[1768030140904,0.19160727,908.21,907.61,0.69255761]
[1768030141104,0.19160727,908.21,907.62,0.69255761]
[1768030141304,0.19160727,908.21,907.39,2.15]
[1768030141500,0.19160727,908.21,907.4,0.69234316]
[1768030141800,0.19160727,908.21,907.41,0.69234316]
[1768030142003,0.19160727,908.21,907.42,0.69234316]
[1768030142201,0.19160727,908.21,907.43,0.69234316]
[1768030142400,0.19160727,908.21,907.44,0.69234316]
[1768030142603,0.19160727,908.21,907.45,0.69234316]
[1768030142802,0.19160727,908.21,907.46,0.69234316]
[1768030143004,0.19160727,908.21,907.47,0.69234316]
[1768030143204,0.19160727,908.21,907.48,0.69234316]
[1768030143404,0.19160727,908.21,907.49,0.69234316]
[1768030143605,0.19160727,908.21,907.5,0.69234316]
[1768030143802,0.19160727,908.21,907.51,0.69234316]
[1768030144005,0.19160727,908.21,907.39,2.15]
[1768030144006,0.19160727,908.21,907.52,0.69234316]
[1768030144205,0.19160727,908.21,907.53,0.69234316]
[1768030144404,0.19160727,908.21,907.54,0.69234316]
[1768030144606,0.19160727,908.21,907.55,0.69234316]
[1768030144806,0.19160727,908.21,907.56,0.69234316]
[1768030145002,0.19160727,908.21,907.57,0.69234316]
[1768030145304,0.19160727,908.21,907.39,2.15]
[1768030176140,0.19160727,908.21,907.04,0.82721701]
[1768030176334,0.19160727,908.21,907.05,1.51727474]
[1768030176638,0.19160727,908.21,907.06,0.69005773]
[1768030176935,0.19160727,908.21,907.07,0.69005773]
[1768030177134,0.19160727,908.21,907.08,0.69005773]
[1768030177438,0.19160727,908.21,907.09,0.69005773]
[1768030177639,0.19160727,908.21,907.1,0.69005773]
[1768030177936,0.19160727,908.21,907.11,0.69005773]
[1768030178135,0.19160727,908.21,907.12,0.69005773]
[1768030178336,0.19160727,908.21,907.13,0.69005773]
[1768030178636,0.19160727,908.21,907.14,0.69005773]
[1768030178838,0.19160727,908.21,907.15,0.69005773]
[1768030179037,0.19160727,908.21,907.16,0.69005773]
[1768030179241,0.19160727,908.21,907.17,0.69005773]
[1768030179441,0.19160727,908.21,907.18,0.69005773]
[1768030179641,0.19160727,908.21,907.19,0.69005773]
[1768030179837,0.19160727,908.21,907.2,0.69005773]
[1768030180037,0.19160727,908.21,907.21,0.69005773]
[1768030180238,0.19160727,908.21,907.22,0.69005773]
[1768030180438,0.19160727,908.21,907.23,0.69005773]
[1768030180738,0.19160727,908.21,907.24,0.69005773]
[1768030180941,0.19160727,908.21,907.25,0.69005773]
[1768030181140,0.19160727,908.21,907.26,0.69005773]
[1768030181339,0.19160727,908.21,907.27,0.69005773]
[1768030181543,0.19160727,908.21,907.28,0.69005773]
[1768030181742,0.19160727,908.21,907.29,0.69005773]
[1768030181942,0.19160727,908.21,907.3,0.69005773]
[1768030182141,0.19160727,908.21,907.31,0.69005773]
[1768030182344,0.19160727,908.21,907.32,0.69005773]
[1768030182544,0.19160727,908.21,907.33,0.69005773]
[1768030182742,0.19160727,908.21,907.34,0.69005773]
[1768030182941,0.19160727,908.21,907.35,0.69005773]
[1768030183139,0.19160727,908.21,907.36,0.69005773]
[1768030183445,0.19160727,908.21,907.37,0.69005773]
[1768030183643,0.19160727,908.21,907.38,0.69005773]
[1768030183841,0.19160727,908.21,907.2,1.539]
[1768030184042,0.19160727,908.21,907.21,0.6907668]
[1768030184247,0.19160727,908.21,907.22,0.6907668]
[1768030184442,0.19160727,908.21,907.23,0.6907668]
[1768030184647,0.19160727,908.21,907.24,0.6907668]
[1768030184942,0.19160727,908.21,907.25,0.6907668]
[1768030185145,0.19160727,908.21,907.26,0.6907668]
[1768030185344,0.19160727,908.21,907.27,0.6907668]
[1768030185543,0.19160727,908.21,907.28,0.6907668]
[1768030185744,0.19160727,908.21,907.29,0.6908841]
[1768030185944,0.19160727,908.21,907.3,0.6908841]
[1768030186246,0.19160727,908.21,907.31,0.6908841]
[1768030186450,0.19160727,908.21,907.32,0.6908841]
[1768030186648,0.19160727,908.21,907.33,0.6908841]
[1768030186846,0.19160727,908.21,907.34,0.6908841]
[1768030187050,0.19160727,908.21,907.35,0.6908841]
[1768030187247,0.19160727,908.21,907.36,0.6908841]
[1768030187450,0.19160727,908.21,907.37,0.6908841]
[1768030187649,0.19160727,908.21,907.38,0.6908841]
[1768030187949,0.19160727,908.21,907.39,0.6908841]
[1768030188147,0.19160727,908.21,907.2,1.539]
[1768030188350,0.19160727,908.21,907.21,0.69120507]
[1768030188650,0.19160727,908.21,907.22,0.69120507]
[1768030188850,0.19160727,908.21,907.2,1.539]
[1768030188851,0.19160727,908.21,907.23,0.69120507]
[1768030189050,0.19160727,908.21,907.24,0.69120507]
[1768030189251,0.19160727,908.21,907.25,0.69120507]
[1768030189451,0.19160727,908.21,907.26,0.69120507]
[1768030189651,0.19160727,908.21,907.27,0.69120507]
[1768030189848,0.19160727,908.21,907.28,0.69120507]
[1768030190048,0.19160727,908.21,907.29,0.69120507]
[1768030190252,0.19160727,908.21,907.3,0.69120507]
[1768030190449,0.19160727,908.21,907.31,0.69120507]
[1768030190751,0.19160727,908.21,907.32,0.69120507]
[1768030190950,0.19160727,908.21,907.33,0.69120507]
[1768030191252,0.19160727,908.21,907.34,0.69120507]
[1768030191451,0.19160727,908.21,907.35,0.69120507]
[1768030191749,0.19160727,908.21,907.36,0.69120507]
[1768030191953,0.19160727,908.21,907.37,0.69120507]
[1768030192252,0.19160727,908.21,907.38,0.69120507]
[1768030192448,0.19160727,908.21,907.39,0.69120507]
[1768030192654,0.19160727,908.21,907.4,0.69120507]
[1768030192949,0.19160727,908.21,907.41,0.69120507]
[1768030193153,0.19160727,908.21,907.2,1.539]
[1768030193353,0.19160727,908.21,907.21,0.69137633]
[1768030193549,0.19160727,908.21,907.22,0.69137633]
[1768030193753,0.19160727,908.21,907.2,1.539]
[1768030193754,0.19160727,908.21,907.23,0.69137633]
[1768030193954,0.19160727,908.21,907.24,0.69137633]
[1768030194151,0.19160727,908.21,907.25,0.69137633]
[1768030194354,0.19160727,908.21,907.26,0.69137633]
[1768030194551,0.19160727,908.21,907.27,0.69137633]
[1768030194754,0.19160727,908.21,907.28,0.69137633]
[1768030194951,0.19160727,908.21,907.29,0.69137633]
[1768030195155,0.19160727,908.21,907.3,0.69137633]
[1768030195353,0.19160727,908.21,907.31,0.69137633]
[1768030195551,0.19160727,908.21,907.32,0.69137633]
[1768030195756,0.19160727,908.21,907.33,0.69137633]
[1768030196056,0.19160727,908.21,907.34,0.69137633]
[1768030196256,0.19160727,908.21,907.35,0.69137633]
[1768030196452,0.19160727,908.21,907.36,0.69137633]
[1768030196655,0.19160727,908.21,907.37,0.69137633]
[1768030196853,0.19160727,908.21,907.38,0.69137633]
[1768030197052,0.19160727,908.21,907.39,0.69137633]
[1768030197353,0.19160727,908.21,907.4,0.69137633]
[1768030197556,0.19160727,908.21,907.41,0.69137633]
[1768030197852,0.19160727,908.21,907.42,0.69137633]
[1768030198056,0.19160727,908.21,907.43,0.69137633]
[1768030198256,0.19160727,908.21,907.44,0.69137633]
[1768030198456,0.19160727,908.21,907.45,0.69137633]
[1768030198658,0.19160727,908.21,907.46,0.69137633]
[1768030198857,0.19160727,908.21,907.47,0.69137633]
[1768030199157,0.19160727,908.21,907.2,1.539]
[1768030199357,0.19160727,908.21,907.21,0.6924109]
[1768030199656,0.19160727,908.21,907.22,0.6924109]
[1768030199854,0.19160727,908.21,907.23,0.6924109]
[1768030200057,0.19160727,908.21,907.24,0.6924109]
[1768030200254,0.19160727,908.21,907.25,0.6924109]
[1768030200556,0.19160727,908.21,907.26,0.6924109]
[1768030200751,0.19160727,908.21,907.27,0.6924109]
[1768030200951,0.19160727,908.21,907.28,0.6924109]
[1768030201156,0.19160727,908.21,907.29,0.6924109]
[1768030201456,0.19160727,908.21,907.3,0.6924109]
[1768030201654,0.19160727,908.21,907.31,0.6924109]
[1768030201852,0.19160727,908.21,907.32,0.6924109]
[1768030202053,0.19160727,908.21,907.33,0.6924109]
[1768030202254,0.19160727,908.21,907.34,0.6924109]
[1768030202554,0.19160727,908.21,907.35,0.6924109]
[1768030202753,0.19160727,908.21,907.36,0.6924109]
[1768030202956,0.19160727,908.21,907.37,0.6924109]
[1768030203155,0.19160727,908.21,907.38,0.6924109]
[1768030203355,0.19160727,908.21,907.39,0.6924109]
[1768030203557,0.19160727,908.21,907.4,0.6924109]
[1768030203757,0.19160727,908.21,907.41,0.6924109]
[1768030203958,0.19160727,908.21,907.42,0.6924109]
[1768030204158,0.19160727,908.21,907.43,0.6924109]
[1768030204456,0.19160727,908.21,907.2,1.539]
[1768030204657,0.19160727,908.21,907.21,0.69251671]
[1768030204860,0.19160727,908.21,907.22,0.69251671]
[1768030205055,0.19160727,908.21,907.23,0.69251671]
[1768030205259,0.19160727,908.21,907.24,0.69251671]
[1768030205457,0.19160727,908.21,907.25,0.69251671]
[1768030205661,0.19160727,908.21,907.26,0.69251671]
[1768030205858,0.19160727,908.21,907.27,0.69251671]
[1768030206156,0.19160727,908.21,907.2,1.539]
[1768030206157,0.19160727,908.21,907.28,0.69251671]
[1768030206358,0.19160727,908.21,907.29,0.69251671]
[1768030206563,0.19160727,908.21,907.3,0.69251671]
[1768030206762,0.19160727,908.21,907.31,0.69251671]
[1768030207062,0.19160727,908.21,907.32,0.69251671]
[1768030207259,0.19160727,908.21,907.33,0.69251671]
[1768030207461,0.19160727,908.21,907.34,0.69251671]
[1768030207658,0.19160727,908.21,907.35,0.69251671]
[1768030207858,0.19160727,908.21,907.36,0.69251671]
[1768030208059,0.19160727,908.21,907.37,0.69251671]
[1768030208259,0.19160727,908.21,907.38,0.69251671]
[1768030208464,0.19160727,908.21,907.39,0.69251671]
[1768030208760,0.19160727,908.21,907.4,0.69251671]
[1768030208960,0.19160727,908.21,907.2,1.539]
[1768030209163,0.19160727,908.21,907.21,0.69227658]
[1768030209361,0.19160727,908.21,907.22,0.69227658]
[1768030209564,0.19160727,908.21,907.23,0.69227658]
[1768030209760,0.19160727,908.21,907.24,0.69227658]
[1768030209965,0.19160727,908.21,907.25,0.69227658]
[1768030210162,0.19160727,908.21,907.26,0.69227658]
[1768030210464,0.19160727,908.21,907.27,0.69227658]
[1768030210664,0.19160727,908.21,907.28,0.69227658]
[1768030210863,0.19160727,908.21,907.29,0.69227658]
[1768030211065,0.19160727,908.21,907.3,0.69227658]
[1768030211266,0.19160727,908.21,907.31,0.69227658]
[1768030211562,0.19160727,908.21,907.32,0.69227658]
[1768030211761,0.19160727,908.21,907.33,0.69227658]
[1768030211964,0.19160727,908.21,907.34,0.69227658]
[1768030212260,0.19160727,908.21,907.35,0.69227658]
[1768030212465,0.19160727,908.21,907.36,0.69227658]
[1768030212665,0.19160727,908.21,907.37,0.69227658]
[1768030212964,0.19160727,908.21,907.38,0.69227658]
[1768030213165,0.19160727,908.21,907.39,0.69227658]
[1768030213463,0.19160727,908.21,907.2,1.539]
[1768030213666,0.19160727,908.21,907.21,0.69214596]
[1768030213864,0.19160727,908.21,907.22,0.69214596]
[1768030214064,0.19160727,908.21,907.23,0.69214596]
[1768030214260,0.19160727,908.21,907.24,0.69214596]
[1768030214461,0.19160727,908.21,907.25,0.69214596]
[1768030214663,0.19160727,908.21,907.26,0.69214596]
[1768030214962,0.19160727,908.21,907.27,0.69214596]
[1768030215165,0.19160727,908.21,907.2,1.539]
[1768030215166,0.19160727,908.21,907.28,0.69214596]
[1768030215364,0.19160727,908.21,907.29,0.69214596]
[1768030215564,0.19160727,908.21,907.3,0.69214596]
[1768030215767,0.19160727,908.21,907.31,0.69214596]
[1768030216066,0.19160727,908.21,907.32,0.69214596]
[1768030216265,0.19160727,908.21,907.33,0.69214596]
[1768030216464,0.19160727,908.21,907.34,0.69214596]
[1768030216668,0.19160727,908.21,907.35,0.69214596]
[1768030216964,0.19160727,908.21,907.36,0.69214596]
[1768030217164,0.19160727,908.21,907.37,0.69214596]
[1768030217368,0.19160727,908.21,907.38,0.69214596]
[1768030217568,0.19160727,908.21,907.39,0.69214596]
[1768030217769,0.19160727,908.21,907.2,1.539]
[1768030217968,0.19160727,908.21,907.21,0.69210834]
[1768030218168,0.19160727,908.21,907.22,0.69210834]
[1768030218371,0.19160727,908.21,907.23,0.69210834]
[1768030218564,0.19160727,908.21,907.24,0.69210834]
[1768030218865,0.19160727,908.21,907.25,0.69210834]
[1768030219070,0.19160727,908.21,907.26,0.69210834]
[1768030219270,0.19160727,908.21,907.27,0.69210834]
[1768030219471,0.19160727,908.21,907.28,0.69210834]
[1768030219667,0.19160727,908.21,907.29,0.69210834]
[1768030219969,0.19160727,908.21,907.3,0.69210834]
[1768030220165,0.19160727,908.21,907.31,0.69210834]
[1768030220366,0.19160727,908.21,907.32,0.69210834]
[1768030220571,0.19160727,908.21,907.33,0.69210834]
[1768030220771,0.19160727,908.21,907.34,0.69210834]
[1768030220972,0.19160727,908.21,907.35,0.69210834]
[1768030221169,0.19160727,908.21,907.36,0.69210834]
[1768030221468,0.19160727,908.21,907.37,0.69210834]
[1768030221669,0.19160727,908.21,907.38,0.69210834]
[1768030221872,0.19160727,908.21,907.39,0.69210834]
[1768030222167,0.19160727,908.21,907.2,1.539]
[1768030222372,0.19160727,908.21,907.21,0.69182129]
[1768030222669,0.19160727,908.21,907.22,0.69182129]
[1768030222872,0.19160727,908.21,907.23,0.69182129]
[1768030223068,0.19160727,908.21,907.24,0.69182129]
[1768030223273,0.19160727,908.21,907.25,0.69182129]
[1768030223470,0.19160727,908.21,907.26,0.69182129]
[1768030223669,0.19160727,908.21,907.27,0.69182129]
[1768030223875,0.19160727,908.21,907.28,0.69182129]
[1768030224068,0.19160727,908.21,907.29,0.69182129]
[1768030224272,0.19160727,908.21,907.3,0.69182129]
[1768030224474,0.19160727,908.21,907.31,0.69182129]
[1768030224772,0.19160727,908.21,907.32,0.69182129]
[1768030224970,0.19160727,908.21,907.33,0.69182129]
[1768030225171,0.19160727,908.21,907.34,0.69182129]
[1768030225376,0.19160727,908.21,907.35,0.69182129]
[1768030225574,0.19160727,908.21,907.36,0.69182129]
[1768030225772,0.19160727,908.21,907.37,0.69182129]
[1768030225976,0.19160727,908.21,907.38,0.69182129]
[1768030226176,0.19160727,908.21,907.2,1.539]
[1768030226373,0.19160727,908.21,907.21,0.69181272]
[1768030226572,0.19160727,908.21,907.22,0.69181272]
[1768030226772,0.19160727,908.21,907.23,0.69181272]
[1768030226976,0.19160727,908.21,907.24,0.69181272]
[1768030227175,0.19160727,908.21,907.25,0.69181272]
[1768030227472,0.19160727,908.21,907.26,0.69181272]
[1768030227674,0.19160727,908.21,907.27,0.69181272]
[1768030227870,0.19160727,908.21,907.28,0.69181272]
[1768030228071,0.19160727,908.21,907.29,0.69181272]
[1768030228272,0.19160727,908.21,907.3,0.69181272]
[1768030228570,0.19160727,908.21,907.31,0.69181272]
[1768030228775,0.19160727,908.21,907.32,0.69181272]
[1768030228973,0.19160727,908.21,907.33,0.69181272]
[1768030229172,0.19160727,908.21,907.34,0.69181272]
[1768030229371,0.19160727,908.21,907.35,0.69181272]
[1768030229572,0.19160727,908.21,907.36,0.69181272]
[1768030229870,0.19160727,908.21,907.37,0.69181272]
[1768030230075,0.19160727,908.21,907.2,1.539]
[1768030230273,0.19160727,908.21,907.21,0.69182764]
[1768030230474,0.19160727,908.21,907.22,0.69182764]
[1768030230677,0.19160727,908.21,907.23,0.69182764]
[1768030230877,0.19160727,908.21,907.24,0.69182764]
[1768030231178,0.19160727,908.21,907.25,0.69182764]
[1768030231472,0.19160727,908.21,907.26,0.69182764]
[1768030231678,0.19160727,908.21,907.27,0.69182764]
[1768030231878,0.19160727,908.21,907.28,0.69182764]
[1768030232077,0.19160727,908.21,907.29,0.69182764]
[1768030232277,0.19160727,908.21,907.3,0.69182764]
[1768030232577,0.19160727,908.21,907.31,0.69182764]
[1768030232776,0.19160727,908.21,907.32,0.69182764]
[1768030232977,0.19160727,908.21,907.33,0.69182764]
[1768030233278,0.19160727,908.21,907.34,0.69182764]
[1768030233479,0.19160727,908.21,907.35,0.69182764]
[1768030233680,0.19160727,908.21,907.36,0.69182764]
[1768030233877,0.19160727,908.21,907.37,0.69182764]
[1768030234180,0.19160727,908.21,907.38,0.69182764]
[1768030234381,0.19160727,908.21,907.37,1.76]
[1768030234677,0.19160727,908.21,907.38,0.69185384]
[1768030234878,0.19160727,908.21,907.37,1.76]
[1768030235082,0.19160727,908.21,907.38,0.69185384]
[1768030235279,0.19160727,908.21,907.37,1.76]
[1768030235481,0.19160727,908.21,907.38,0.69186476]
[1768030235679,0.19160727,908.21,907.37,1.76]
[1768030235979,0.19160727,908.21,907.38,0.69186476]
[1768030236184,0.19160727,908.21,907.37,1.76]
[1768030236385,0.19160727,908.21,907.38,0.69187775]
[1768030236589,0.19160727,908.21,907.37,1.76]
[1768030236787,0.19160727,908.21,907.38,0.69187775]
[1768030236981,0.19160727,908.21,907.37,1.76]
[1768030237185,0.19160727,908.21,907.38,0.69187775]
[1768030237480,0.19160727,908.21,907.37,1.76]
[1768030237685,0.19160727,908.21,907.38,0.69189284]
[1768030237885,0.19160727,908.21,907.37,1.76]
[1768030238083,0.19160727,908.21,907.38,0.69189284]
[1768030238282,0.19160727,908.21,907.37,1.76]
[1768030238283,0.19160727,908.21,907.39,0.6919073]
[1768030238586,0.19160727,908.21,907.37,1.76]
[1768030238781,0.19160727,908.21,907.38,0.69191031]
[1768030238980,0.19160727,908.21,907.39,0.69191031]
[1768030239183,0.19160727,908.21,907.37,1.76]
[1768030239385,0.19160727,908.21,907.38,0.69193023]
[1768030239685,0.19160727,908.21,907.39,0.69193023]
[1768030239882,0.19160727,908.21,907.37,1.76]
[1768030240086,0.19160727,908.21,907.38,0.69193023]
[1768030240286,0.19160727,908.21,907.39,0.69193023]
[1768030240488,0.19160727,908.21,907.37,1.76]
[1768030240784,0.19160727,908.21,907.38,0.69204195]
[1768030240984,0.19160727,908.21,907.39,0.69204195]
[1768030241188,0.19160727,908.21,907.37,1.76]
[1768030241386,0.19160727,908.21,907.38,0.69206804]
[1768030241585,0.19160727,908.21,907.39,0.69206804]
[1768030241785,0.19160727,908.21,907.37,1.76]
[1768030242085,0.19160727,908.21,907.38,0.69206794]
[1768030242385,0.19160727,908.21,907.39,0.69206794]
[1768030242585,0.19160727,908.21,907.37,1.76]
[1768030242789,0.19160727,908.21,907.38,0.69213924]
[1768030242985,0.19160727,908.21,907.39,0.69213924]
[1768030243190,0.19160727,908.21,907.37,1.76]
[1768030243491,0.19160727,908.21,907.38,0.69217385]
[1768030243690,0.19160727,908.21,907.39,0.69217385]
[1768030243892,0.19160727,908.21,907.37,1.76]
[1768030244091,0.19160727,908.21,907.38,0.69220588]
[1768030244287,0.19160727,908.21,907.39,0.69220588]
[1768030244490,0.19160727,908.21,907.4,0.69220588]
[1768030244692,0.19160727,908.21,907.37,1.76]
[1768030244988,0.19160727,908.21,907.38,0.69238587]
[1768030245188,0.19160727,908.21,907.39,0.69238587]
[1768030245392,0.19160727,908.21,907.4,0.69238587]
[1768030245592,0.19160727,908.21,907.37,1.76]
[1768030245897,0.19160727,908.21,907.38,0.69243475]
[1768030246090,0.19160727,908.21,907.39,0.69243475]
[1768030246292,0.19160727,908.21,907.4,0.69243475]
[1768030246593,0.19160727,908.21,907.37,1.76]
[1768030246793,0.19160727,908.21,907.38,0.69248364]
[1768030246993,0.19160727,908.21,907.39,0.69248364]
[1768030247192,0.19160727,908.21,907.4,0.69248364]
[1768030247391,0.19160727,908.21,907.37,1.76]
[1768030247594,0.19160727,908.21,907.38,0.69254472]
[1768030247793,0.19160727,908.21,907.39,0.69254472]
[1768030247994,0.19160727,908.21,907.4,0.69254472]
[1768030248194,0.19160727,908.21,907.37,1.76]
[1768030248393,0.19160727,908.21,907.38,0.69265712]
[1768030248593,0.19160727,908.21,907.39,0.69265712]
[1768030248792,0.19160727,908.21,907.4,0.69265712]
[1768030249095,0.19160727,908.21,907.41,0.69265712]
[1768030249292,0.19160727,908.21,907.37,1.76]
[1768030249494,0.19160727,908.21,907.38,0.69278322]
[1768030249690,0.19160727,908.21,907.39,0.69278322]
[1768030249893,0.19160727,908.21,907.4,0.69278322]
[1768030250196,0.19160727,908.21,907.41,0.69278322]
[1768030250396,0.19160727,908.21,907.37,1.76]
[1768030250697,0.19160727,908.21,907.38,0.69278305]
[1768030250994,0.19160727,908.21,907.37,1.76]
[1768030250995,0.19160727,908.21,907.39,0.69278305]
[1768030251194,0.19160727,908.21,907.4,0.69278305]
[1768030251392,0.19160727,908.21,907.41,0.69278305]
[1768030251594,0.19160727,908.21,907.37,1.76]
[1768030251793,0.19160727,908.21,907.38,0.69276049]
[1768030251997,0.19160727,908.21,907.39,0.69276049]
[1768030252196,0.19160727,908.21,907.4,0.69276049]
[1768030252495,0.19160727,908.21,907.41,0.69276049]
[1768030252695,0.19160727,908.21,907.37,1.76]
[1768030252899,0.19160727,908.21,907.38,0.69276001]
[1768030253098,0.19160727,908.21,907.39,0.69276001]
[1768030253400,0.19160727,908.21,907.4,0.69276001]
[1768030253600,0.19160727,908.21,907.41,0.69276001]
[1768030253798,0.19160727,908.21,907.37,1.76]
[1768030254001,0.19160727,908.21,907.38,0.69276036]
[1768030254204,0.19160727,908.21,907.39,0.69276036]
[1768030254500,0.19160727,908.21,907.4,0.69276036]
[1768030254701,0.19160727,908.21,907.41,0.69276036]
[1768030254905,0.19160727,908.21,907.37,1.76]
[1768030255200,0.19160727,908.21,907.38,0.69276085]
[1768030255403,0.19160727,908.21,907.39,0.69276085]
[1768030255604,0.19160727,908.21,907.4,0.69276085]
[1768030255805,0.19160727,908.21,907.41,0.69276085]
[1768030256005,0.19160727,908.21,907.37,1.76]
[1768030256305,0.19160727,908.21,907.38,0.69272456]
[1768030256504,0.19160727,908.21,907.39,0.69272456]
[1768030256804,0.19160727,908.21,907.4,0.69272456]
[1768030257000,0.19160727,908.21,907.41,0.69272456]
[1768030257204,0.19160727,908.21,907.37,1.76]
[1768030257503,0.19160727,908.21,907.38,0.69272648]
[1768030257702,0.19160727,908.21,907.39,0.69272648]
[1768030257903,0.19160727,908.21,907.4,0.69272648]
[1768030258107,0.19160727,908.21,907.41,0.69272648]
[1768030258303,0.19160727,908.21,907.37,1.76]
[1768030258507,0.19160727,908.21,907.38,0.69272769]
[1768030258707,0.19160727,908.21,907.39,0.69272769]
[1768030258908,0.19160727,908.21,907.4,0.69272769]